[Event "Early-Titled-Tuesday-Blitz-March-19-2024"]
[Site "Chess.com"]
[Date "2024.03.19"]
[Round "5"]
[White "RianKapriaga"]
[Black "TimGrutter03"]
[Result "0-1"]
[WhiteElo "2341"]
[BlackElo "2559"]
[TimeControl "180+1"]
[EndTime "8:57:08 PDT"]
[Termination "TimGrutter03 won on time"]

1. d4 {[%clk 0:02:55.2]} 1... Nf6 {[%clk 0:02:59.3]} 2. Nf3 {[%clk 0:02:54.5]}
2... d5 {[%clk 0:02:57.9]} 3. Bf4 {[%clk 0:02:53.2]} 3... e6 {[%clk 0:02:54.5]}
4. e3 {[%clk 0:02:52.9]} 4... Bd6 {[%clk 0:02:53.2]} 5. Bg3 {[%clk 0:02:50]}
5... O-O {[%clk 0:02:51.2]} 6. Nbd2 {[%clk 0:02:49.4]} 6... Qe7 {[%clk
0:02:48.6]} 7. Bd3 {[%clk 0:02:47.8]} 7... Nbd7 {[%clk 0:02:46.1]} 8. Ne5 {[%clk
0:02:47.1]} 8... c5 {[%clk 0:02:38.9]} 9. c3 {[%clk 0:02:46.2]} 9... Rd8 {[%clk
0:02:20]} 10. O-O {[%clk 0:02:43.8]} 10... Nf8 {[%clk 0:02:19.4]} 11. Qe2 {[%clk
0:02:36.8]} 11... Ng6 {[%clk 0:02:15.4]} 12. Nxg6 {[%clk 0:02:35.8]} 12... hxg6
{[%clk 0:02:14.1]} 13. Bxd6 {[%clk 0:02:35.9]} 13... Qxd6 {[%clk 0:02:13.7]} 14.
f4 {[%clk 0:02:36.3]} 14... b6 {[%clk 0:02:07.7]} 15. Rf3 {[%clk 0:02:34.5]}
15... Bb7 {[%clk 0:02:04.7]} 16. Rh3 {[%clk 0:02:33.8]} 16... Ne4 {[%clk
0:02:04.3]} 17. Nf3 {[%clk 0:02:27]} 17... cxd4 {[%clk 0:01:51.7]} 18. cxd4
{[%clk 0:02:24.8]} 18... Rac8 {[%clk 0:01:48.8]} 19. Bxe4 {[%clk 0:02:03.2]}
19... dxe4 {[%clk 0:01:47.8]} 20. Ne5 {[%clk 0:02:02.9]} 20... Rc7 {[%clk
0:01:36.1]} 21. Qe1 {[%clk 0:02:01]} 21... Qe7 {[%clk 0:01:30.8]} 22. g4 {[%clk
0:01:45.1]} 22... g5 {[%clk 0:01:28.4]} 23. f5 {[%clk 0:01:29.8]} 23... Rc2
{[%clk 0:01:23.4]} 24. Rc1 {[%clk 0:01:18.5]} 24... Rxc1 {[%clk 0:01:17.7]} 25.
Qxc1 {[%clk 0:01:19.4]} 25... Rc8 {[%clk 0:01:17.9]} 26. Qd2 {[%clk 0:01:05.4]}
26... a5 {[%clk 0:01:11.1]} 27. a3 {[%clk 0:01:02.9]} 27... Bd5 {[%clk
0:01:05.8]} 28. Rh5 {[%clk 0:01:00.9]} 28... Qc7 {[%clk 0:00:54.7]} 29. fxe6
{[%clk 0:00:34.9]} 29... Bxe6 {[%clk 0:00:50.1]} 30. Rxg5 {[%clk 0:00:24.8]}
30... Qc1+ {[%clk 0:00:47.9]} 31. Qxc1 {[%clk 0:00:24.2]} 31... Rxc1+ {[%clk
0:00:48.8]} 32. Kf2 {[%clk 0:00:23.6]} 32... f6 {[%clk 0:00:49.2]} 33. Rg6
{[%clk 0:00:23.1]} 33... Bf7 {[%clk 0:00:47.2]} 34. h4 {[%clk 0:00:05.2]} 34...
Bxg6 {[%clk 0:00:44.1]} 35. Nxg6 {[%clk 0:00:04.7]} 35... Rc2+ {[%clk
0:00:44.7]} 36. Kg3 {[%clk 0:00:04.7]} 36... Rxb2 {[%clk 0:00:44.7]} 37. Kf4
{[%clk 0:00:04.4]} 37... b5 {[%clk 0:00:43.8]} 38. Ne7+ {[%clk 0:00:03.3]} 38...
Kf7 {[%clk 0:00:42.2]} 39. Nc6 {[%clk 0:00:03.2]} 39... b4 {[%clk 0:00:40.7]}
40. axb4 {[%clk 0:00:02.2]} 40... a4 {[%clk 0:00:40.8]} 0-1

[Event "Early-Titled-Tuesday-Blitz-March-19-2024"]
[Site "Chess.com"]
[Date "2024.03.19"]
[Round "5"]
[White "Al_Shima"]
[Black "vladgoncharov"]
[Result "1-0"]
[WhiteElo "2470"]
[BlackElo "2610"]
[TimeControl "180+1"]
[EndTime "8:57:09 PDT"]
[Termination "Al_Shima won on time"]

1. d4 {[%clk 0:03:00.9]} 1... Nf6 {[%clk 0:02:59.3]} 2. c4 {[%clk 0:03:01.2]}
2... e6 {[%clk 0:02:59.6]} 3. Nc3 {[%clk 0:03:01.4]} 3... d5 {[%clk 0:02:59.6]}
4. Bg5 {[%clk 0:03:01.6]} 4... Bb4 {[%clk 0:02:57.7]} 5. e3 {[%clk 0:03:01.5]}
5... c5 {[%clk 0:02:55.4]} 6. a3 {[%clk 0:02:58.3]} 6... Bxc3+ {[%clk
0:02:50.5]} 7. bxc3 {[%clk 0:02:58.3]} 7... Qa5 {[%clk 0:02:40.8]} 8. Ne2 {[%clk
0:02:51.9]} 8... Ne4 {[%clk 0:02:36.1]} 9. Bh4 {[%clk 0:02:48.4]} 9... Nc6
{[%clk 0:02:35.5]} 10. f3 {[%clk 0:02:43.7]} 10... Nxc3 {[%clk 0:02:26.7]} 11.
Qd2 {[%clk 0:02:35.7]} 11... cxd4 {[%clk 0:02:15.9]} 12. Nxd4 {[%clk 0:02:29.2]}
12... Nxd4 {[%clk 0:01:56.6]} 13. exd4 {[%clk 0:02:26.3]} 13... b6 {[%clk
0:01:50.6]} 14. Rc1 {[%clk 0:02:17.2]} 14... Na4 {[%clk 0:01:46.5]} 15. Qxa5
{[%clk 0:02:16.6]} 15... bxa5 {[%clk 0:01:46.4]} 16. cxd5 {[%clk 0:02:16.1]}
16... exd5 {[%clk 0:01:39.3]} 17. Rc7 {[%clk 0:01:57.5]} 17... O-O {[%clk
0:01:32.3]} 18. Bb5 {[%clk 0:01:55.5]} 18... Nb6 {[%clk 0:01:02.3]} 19. Be7
{[%clk 0:01:52]} 19... Be6 {[%clk 0:00:21.7]} 20. Bxf8 {[%clk 0:01:50.8]} 20...
Kxf8 {[%clk 0:00:22.6]} 21. Kf2 {[%clk 0:01:44.6]} 21... Nc8 {[%clk 0:00:18.5]}
22. Rhc1 {[%clk 0:01:36.8]} 22... Rb8 {[%clk 0:00:17.1]} 23. a4 {[%clk 0:01:25]}
23... a6 {[%clk 0:00:13.8]} 24. Bxa6 {[%clk 0:01:22.4]} 24... Nd6 {[%clk
0:00:10.2]} 25. R7c5 {[%clk 0:00:59.6]} 25... Rb4 {[%clk 0:00:09.1]} 26. Rxa5
{[%clk 0:00:53.2]} 26... Nf5 {[%clk 0:00:08.6]} 27. Bc8 {[%clk 0:00:46.4]} 27...
Rb2+ {[%clk 0:00:06.9]} 28. Kg1 {[%clk 0:00:41.3]} 28... Nxd4 {[%clk 0:00:07]}
29. Kf1 {[%clk 0:00:28.8]} 29... Ne2 {[%clk 0:00:04.9]} 30. Rc7 {[%clk
0:00:20.5]} 30... Bxc8 {[%clk 0:00:01.2]} 31. Rxc8+ {[%clk 0:00:21.4]} 31... Ke7
{[%clk 0:00:01.1]} 32. Rxd5 {[%clk 0:00:18.3]} 32... Nf4 {[%clk 0:00:01.2]} 33.
Re5+ {[%clk 0:00:14.7]} 1-0

[Event "Early-Titled-Tuesday-Blitz-March-19-2024"]
[Site "Chess.com"]
[Date "2024.03.19"]
[Round "5"]
[White "gorgeous1083"]
[Black "HanSchut"]
[Result "1-0"]
[WhiteElo "2078"]
[BlackElo "2297"]
[TimeControl "180+1"]
[EndTime "8:57:09 PDT"]
[Termination "gorgeous1083 won on time"]

1. d4 {[%clk 0:03:00.9]} 1... Nf6 {[%clk 0:02:59.1]} 2. c4 {[%clk 0:03:01.3]}
2... g6 {[%clk 0:02:57.5]} 3. Nc3 {[%clk 0:03:00.2]} 3... d5 {[%clk 0:02:57.6]}
4. cxd5 {[%clk 0:02:58.6]} 4... Nxd5 {[%clk 0:02:58.5]} 5. e4 {[%clk 0:02:58.9]}
5... Nxc3 {[%clk 0:02:59.2]} 6. bxc3 {[%clk 0:02:59.5]} 6... Bg7 {[%clk
0:02:59.7]} 7. h3 {[%clk 0:02:57.8]} 7... c5 {[%clk 0:02:59.7]} 8. Nf3 {[%clk
0:02:57.8]} 8... Nc6 {[%clk 0:02:59.5]} 9. Be3 {[%clk 0:02:58.2]} 9... Qa5
{[%clk 0:02:58.3]} 10. Bd2 {[%clk 0:02:57.9]} 10... Qd8 {[%clk 0:02:41.7]} 11.
Be3 {[%clk 0:02:50.5]} 11... O-O {[%clk 0:02:40.9]} 12. Be2 {[%clk 0:02:45.7]}
12... cxd4 {[%clk 0:02:24.9]} 13. cxd4 {[%clk 0:02:44.6]} 13... Qa5+ {[%clk
0:02:21.1]} 14. Bd2 {[%clk 0:02:42.4]} 14... Qa3 {[%clk 0:02:20.7]} 15. d5
{[%clk 0:02:36.6]} 15... Bxa1 {[%clk 0:02:13.9]} 16. Qxa1 {[%clk 0:02:34.7]}
16... Nb4 {[%clk 0:02:07.5]} 17. O-O {[%clk 0:02:04.2]} 17... Rd8 {[%clk
0:01:35.3]} 18. Bh6 {[%clk 0:01:46.1]} 18... f6 {[%clk 0:01:35]} 19. Nd4 {[%clk
0:01:33.9]} 19... Bd7 {[%clk 0:01:19]} 20. Bc4 {[%clk 0:01:29.5]} 20... Kh8
{[%clk 0:01:12.2]} 21. e5 {[%clk 0:01:26.1]} 21... Rac8 {[%clk 0:00:54.7]} 22.
Bb3 {[%clk 0:01:15.7]} 22... Nd3 {[%clk 0:00:47.4]} 23. exf6 {[%clk 0:01:11.6]}
23... exf6 {[%clk 0:00:47.8]} 24. Ne6 {[%clk 0:00:53.2]} 24... Ne5 {[%clk
0:00:39.8]} 25. f4 {[%clk 0:00:44.5]} 25... Bxe6 {[%clk 0:00:37.4]} 26. dxe6
{[%clk 0:00:37.3]} 26... Qc5+ {[%clk 0:00:22]} 27. Kh1 {[%clk 0:00:33.6]} 27...
Qd4 {[%clk 0:00:15.2]} 28. Qxd4 {[%clk 0:00:31.6]} 28... Rxd4 {[%clk 0:00:15.5]}
29. fxe5 {[%clk 0:00:32.3]} 29... fxe5 {[%clk 0:00:15.9]} 30. Rf7 {[%clk
0:00:30]} 30... Rdd8 {[%clk 0:00:09.2]} 31. Bg7+ {[%clk 0:00:28.7]} 31... Kg8
{[%clk 0:00:09]} 32. Bxe5 {[%clk 0:00:28.9]} 32... Re8 {[%clk 0:00:08.5]} 33.
Rg7+ {[%clk 0:00:27]} 33... Kf8 {[%clk 0:00:07]} 34. Rf7+ {[%clk 0:00:26.2]}
34... Kg8 {[%clk 0:00:06.9]} 35. Rxb7 {[%clk 0:00:25]} 35... Rc6 {[%clk
0:00:05.3]} 36. e7+ {[%clk 0:00:19.9]} 1-0

[Event "Early-Titled-Tuesday-Blitz-March-19-2024"]
[Site "Chess.com"]
[Date "2024.03.19"]
[Round "5"]
[White "azikom"]
[Black "yonaltimur"]
[Result "1-0"]
[WhiteElo "2613"]
[BlackElo "2344"]
[TimeControl "180+1"]
[EndTime "8:57:12 PDT"]
[Termination "azikom won by resignation"]

1. c4 {[%clk 0:03:00.1]} 1... e5 {[%clk 0:02:59.6]} 2. Nc3 {[%clk 0:02:58.5]}
2... Nf6 {[%clk 0:02:58.1]} 3. e3 {[%clk 0:02:57.3]} 3... d5 {[%clk 0:02:55]} 4.
cxd5 {[%clk 0:02:56.9]} 4... Nxd5 {[%clk 0:02:55.9]} 5. Nf3 {[%clk 0:02:57.3]}
5... Nc6 {[%clk 0:02:55.5]} 6. a3 {[%clk 0:02:56.4]} 6... Be7 {[%clk 0:02:53.1]}
7. Qc2 {[%clk 0:02:54.6]} 7... O-O {[%clk 0:02:51.5]} 8. b4 {[%clk 0:02:53.4]}
8... a6 {[%clk 0:02:44.1]} 9. Bb2 {[%clk 0:02:52.8]} 9... Be6 {[%clk 0:02:44.2]}
10. Ne4 {[%clk 0:02:52.1]} 10... f6 {[%clk 0:02:41.2]} 11. Be2 {[%clk
0:02:49.8]} 11... Qd7 {[%clk 0:02:38.8]} 12. Nc5 {[%clk 0:02:46.1]} 12... Bxc5
{[%clk 0:02:38.5]} 13. Qxc5 {[%clk 0:02:47]} 13... Rfd8 {[%clk 0:02:37.9]} 14.
O-O {[%clk 0:02:45.2]} 14... Nb6 {[%clk 0:02:37.6]} 15. Qc2 {[%clk 0:02:41.2]}
15... Qf7 {[%clk 0:02:30]} 16. d3 {[%clk 0:02:39.4]} 16... Rd7 {[%clk
0:02:30.2]} 17. Nd2 {[%clk 0:02:38.4]} 17... f5 {[%clk 0:02:22.8]} 18. Rac1
{[%clk 0:02:35]} 18... Rad8 {[%clk 0:02:22.4]} 19. Nf3 {[%clk 0:02:27.8]} 19...
Bb3 {[%clk 0:02:07.2]} 20. Qb1 {[%clk 0:02:24.6]} 20... Re8 {[%clk 0:01:36.1]}
21. Rxc6 {[%clk 0:02:22.9]} 21... bxc6 {[%clk 0:01:35.9]} 22. Nxe5 {[%clk
0:02:23]} 22... Rxe5 {[%clk 0:01:35.5]} 23. Bxe5 {[%clk 0:02:23.3]} 23... Bd5
{[%clk 0:01:30]} 24. Rc1 {[%clk 0:02:16.6]} 24... Qg6 {[%clk 0:01:26.2]} 25. f3
{[%clk 0:02:15.2]} 25... Qh6 {[%clk 0:01:18.5]} 26. Bf4 {[%clk 0:02:13.8]} 26...
g5 {[%clk 0:01:11.7]} 27. Bg3 {[%clk 0:02:12.3]} 27... Re7 {[%clk 0:01:10.4]}
28. e4 {[%clk 0:02:11.6]} 28... Bf7 {[%clk 0:00:54.3]} 29. Bf1 {[%clk 0:02:05]}
29... fxe4 {[%clk 0:00:49.2]} 30. dxe4 {[%clk 0:02:01.3]} 30... Rd7 {[%clk
0:00:48.5]} 31. Qc2 {[%clk 0:01:57]} 31... g4 {[%clk 0:00:24.8]} 32. f4 {[%clk
0:01:55.4]} 32... Qd6 {[%clk 0:00:17.4]} 33. Qc5 {[%clk 0:01:50]} 33... Qd4+
{[%clk 0:00:15.9]} 34. Qxd4 {[%clk 0:01:48.5]} 34... Rxd4 {[%clk 0:00:16.8]} 35.
Rxc6 {[%clk 0:01:48.6]} 35... Rxe4 {[%clk 0:00:16]} 36. Rxc7 {[%clk 0:01:48]}
36... Re3 {[%clk 0:00:14.8]} 37. Bf2 {[%clk 0:01:46.8]} 37... Re6 {[%clk
0:00:11.6]} 38. f5 {[%clk 0:01:43.8]} 38... Rh6 {[%clk 0:00:10]} 39. Be3 {[%clk
0:01:43.1]} 39... Rd6 {[%clk 0:00:06.1]} 40. Bc5 {[%clk 0:01:41.4]} 40... Rf6
{[%clk 0:00:03.5]} 41. Bd4 {[%clk 0:01:39.7]} 41... Rd6 {[%clk 0:00:03.5]} 42.
Be5 {[%clk 0:01:38.9]} 42... Rd1 {[%clk 0:00:03.6]} 43. Kf2 {[%clk 0:01:34.4]}
43... Rd2+ {[%clk 0:00:03.7]} 44. Ke1 {[%clk 0:01:34.2]} 44... Rd5 {[%clk
0:00:03.4]} 45. Rc5 {[%clk 0:01:29.9]} 45... Rxc5 {[%clk 0:00:02]} 46. bxc5
{[%clk 0:01:29.6]} 46... Nd7 {[%clk 0:00:02.6]} 47. Bd4 {[%clk 0:01:29.6]} 47...
Bd5 {[%clk 0:00:03.1]} 48. g3 {[%clk 0:01:29.2]} 48... Kf7 {[%clk 0:00:03.4]}
49. Bxa6 {[%clk 0:01:28.7]} 49... Ke7 {[%clk 0:00:03.3]} 50. Bb5 {[%clk
0:01:28.2]} 50... Nb8 {[%clk 0:00:03.3]} 51. a4 {[%clk 0:01:27.5]} 51... Nc6
{[%clk 0:00:02.1]} 52. Bxc6 {[%clk 0:01:26.8]} 52... Bxc6 {[%clk 0:00:03]} 53.
a5 {[%clk 0:01:27.4]} 53... Bb5 {[%clk 0:00:03.2]} 54. Kd2 {[%clk 0:01:27.8]}
54... Kd7 {[%clk 0:00:03]} 55. Ke3 {[%clk 0:01:21.2]} 1-0

[Event "Early-Titled-Tuesday-Blitz-March-19-2024"]
[Site "Chess.com"]
[Date "2024.03.19"]
[Round "5"]
[White "Herzog2012"]
[Black "Meri-Arabidze"]
[Result "1-0"]
[WhiteElo "2536"]
[BlackElo "2675"]
[TimeControl "180+1"]
[EndTime "8:57:17 PDT"]
[Termination "Herzog2012 won on time"]

1. e4 {[%clk 0:03:00.9]} 1... e5 {[%clk 0:02:57.1]} 2. Nc3 {[%clk 0:02:59.7]}
2... Nc6 {[%clk 0:02:56.8]} 3. g3 {[%clk 0:02:57.8]} 3... Bc5 {[%clk 0:02:53.5]}
4. Bg2 {[%clk 0:02:57.4]} 4... Nf6 {[%clk 0:02:53.7]} 5. Nge2 {[%clk 0:02:56.8]}
5... d6 {[%clk 0:02:47.6]} 6. O-O {[%clk 0:02:53.6]} 6... a6 {[%clk 0:02:47.9]}
7. d3 {[%clk 0:02:52.1]} 7... Bg4 {[%clk 0:02:47.4]} 8. h3 {[%clk 0:02:36.1]}
8... Be6 {[%clk 0:02:46.4]} 9. Nd5 {[%clk 0:02:31.3]} 9... Qd7 {[%clk
0:02:35.8]} 10. c3 {[%clk 0:02:17.7]} 10... Ba7 {[%clk 0:02:21.5]} 11. Kh2
{[%clk 0:02:07.2]} 11... h5 {[%clk 0:01:53]} 12. d4 {[%clk 0:01:42]} 12... exd4
{[%clk 0:01:48.5]} 13. Nxf6+ {[%clk 0:01:35.8]} 13... gxf6 {[%clk 0:01:48.4]}
14. Nxd4 {[%clk 0:01:31.3]} 14... O-O-O {[%clk 0:01:18.5]} 15. Be3 {[%clk
0:01:20.2]} 15... Nxd4 {[%clk 0:01:10.9]} 16. Bxd4 {[%clk 0:01:18.3]} 16... Bxd4
{[%clk 0:01:09]} 17. Qxd4 {[%clk 0:01:19.2]} 17... f5 {[%clk 0:01:02.9]} 18. Qa7
{[%clk 0:01:03.3]} 18... c6 {[%clk 0:01:02.6]} 19. e5 {[%clk 0:00:42.4]} 19...
dxe5 {[%clk 0:00:51.7]} 20. Rfd1 {[%clk 0:00:39.9]} 20... Qc7 {[%clk 0:00:51.6]}
21. b4 {[%clk 0:00:36.3]} 21... h4 {[%clk 0:00:45.2]} 22. a4 {[%clk 0:00:27.7]}
22... hxg3+ {[%clk 0:00:44.9]} 23. fxg3 {[%clk 0:00:28.6]} 23... e4 {[%clk
0:00:40.7]} 24. b5 {[%clk 0:00:17.6]} 24... f4 {[%clk 0:00:25.2]} 25. bxa6
{[%clk 0:00:13.5]} 25... fxg3+ {[%clk 0:00:25]} 26. Kg1 {[%clk 0:00:11]} 26...
Qb8 {[%clk 0:00:04.7]} 27. Qb6 {[%clk 0:00:08.2]} 27... Qc7 {[%clk 0:00:04]} 28.
Qa7 {[%clk 0:00:08.1]} 28... Qb8 {[%clk 0:00:02.9]} 29. Qc5 {[%clk 0:00:05.6]}
29... Qc7 {[%clk 0:00:01.2]} 30. a7 {[%clk 0:00:04.2]} 1-0

[Event "Early-Titled-Tuesday-Blitz-March-19-2024"]
[Site "Chess.com"]
[Date "2024.03.19"]
[Round "5"]
[White "maurovargas01"]
[Black "ImportedItalianMaple"]
[Result "0-1"]
[WhiteElo "1828"]
[BlackElo "2518"]
[TimeControl "180+1"]
[EndTime "8:57:17 PDT"]
[Termination "ImportedItalianMaple won on time"]

1. e4 {[%clk 0:02:58.1]} 1... g6 {[%clk 0:02:36.9]} 2. Nc3 {[%clk 0:02:55.4]}
2... Bg7 {[%clk 0:02:37.1]} 3. f4 {[%clk 0:02:55.5]} 3... c6 {[%clk 0:02:36.2]}
4. Nf3 {[%clk 0:02:54.9]} 4... d5 {[%clk 0:02:36.6]} 5. d3 {[%clk 0:02:53.5]}
5... Bg4 {[%clk 0:02:34.9]} 6. g3 {[%clk 0:02:52.4]} 6... dxe4 {[%clk
0:02:31.9]} 7. Nxe4 {[%clk 0:02:51.4]} 7... Nf6 {[%clk 0:02:31.8]} 8. Nxf6+
{[%clk 0:02:47.6]} 8... exf6 {[%clk 0:02:32.4]} 9. Bg2 {[%clk 0:02:47.5]} 9...
Qe7+ {[%clk 0:02:28.3]} 10. Qe2 {[%clk 0:02:44]} 10... Qxe2+ {[%clk 0:02:28.7]}
11. Kxe2 {[%clk 0:02:43.9]} 11... Na6 {[%clk 0:02:26.3]} 12. c3 {[%clk
0:02:34.4]} 12... O-O-O {[%clk 0:02:23]} 13. Kf2 {[%clk 0:02:27.9]} 13... Rxd3
{[%clk 0:02:22.4]} 14. Be3 {[%clk 0:02:25.4]} 14... Nc7 {[%clk 0:01:57.4]} 15.
Nd4 {[%clk 0:02:12.9]} 15... Re8 {[%clk 0:01:49.7]} 16. Rhe1 {[%clk 0:02:09.2]}
16... Nd5 {[%clk 0:01:28.2]} 17. Bxd5 {[%clk 0:01:56.5]} 17... cxd5 {[%clk
0:01:29.1]} 18. Nb5 {[%clk 0:01:35.4]} 18... Bf8 {[%clk 0:01:29.1]} 19. Nxa7+
{[%clk 0:01:25.4]} 19... Kd7 {[%clk 0:01:29.3]} 20. Nb5 {[%clk 0:01:24.2]} 20...
h5 {[%clk 0:00:58.9]} 21. Nd4 {[%clk 0:01:20.7]} 21... Bc5 {[%clk 0:00:56.3]}
22. Nc2 {[%clk 0:00:40.4]} 22... Rd2+ {[%clk 0:00:51.9]} 23. Kg1 {[%clk
0:00:18.1]} 23... b6 {[%clk 0:00:16]} 24. Bxc5 {[%clk 0:00:16.8]} 24... bxc5
{[%clk 0:00:16.9]} 25. Ne3 {[%clk 0:00:16.7]} 25... Kc6 {[%clk 0:00:14.9]} 26.
Rab1 {[%clk 0:00:14.4]} 26... Bf3 {[%clk 0:00:11.6]} 27. a3 {[%clk 0:00:11]}
27... g5 {[%clk 0:00:11.7]} 28. Nf5 {[%clk 0:00:04.3]} 28... Be4 {[%clk
0:00:09.4]} 29. Ne3 {[%clk 0:00:02.7]} 29... gxf4 {[%clk 0:00:09.4]} 30. gxf4
{[%clk 0:00:02.6]} 30... Rg8+ {[%clk 0:00:09.8]} 31. Kf1 {[%clk 0:00:02.6]}
31... Bd3+ {[%clk 0:00:08.5]} 0-1

[Event "Early-Titled-Tuesday-Blitz-March-19-2024"]
[Site "Chess.com"]
[Date "2024.03.19"]
[Round "5"]
[White "ccccvhhhj"]
[Black "Fh2411"]
[Result "0-1"]
[WhiteElo "2469"]
[BlackElo "2643"]
[TimeControl "180+1"]
[EndTime "8:57:22 PDT"]
[Termination "Fh2411 won by checkmate"]

1. e4 {[%clk 0:02:48.9]} 1... c6 {[%clk 0:02:59.7]} 2. d4 {[%clk 0:02:49]} 2...
d5 {[%clk 0:03:00.3]} 3. e5 {[%clk 0:02:49.9]} 3... Bf5 {[%clk 0:02:59.9]} 4.
Nc3 {[%clk 0:02:49.4]} 4... e6 {[%clk 0:02:58.1]} 5. g4 {[%clk 0:02:49.9]} 5...
Bg6 {[%clk 0:02:58.4]} 6. Nge2 {[%clk 0:02:50.8]} 6... c5 {[%clk 0:02:48.6]} 7.
h4 {[%clk 0:02:51.3]} 7... h5 {[%clk 0:02:48.1]} 8. Nf4 {[%clk 0:02:51.3]} 8...
Bh7 {[%clk 0:02:48.4]} 9. g5 {[%clk 0:02:51.2]} 9... cxd4 {[%clk 0:02:43.5]} 10.
Nb5 {[%clk 0:02:51.5]} 10... Be4 {[%clk 0:02:33.3]} 11. f3 {[%clk 0:02:49.7]}
11... Bf5 {[%clk 0:02:33.6]} 12. Nxd4 {[%clk 0:02:49.9]} 12... Ne7 {[%clk
0:02:30.5]} 13. Bd3 {[%clk 0:02:49.4]} 13... Bxd3 {[%clk 0:02:20.7]} 14. Qxd3
{[%clk 0:02:50.3]} 14... g6 {[%clk 0:02:09.3]} 15. Bd2 {[%clk 0:02:08.4]} 15...
Nbc6 {[%clk 0:02:05.1]} 16. Nxc6 {[%clk 0:02:08]} 16... Nxc6 {[%clk 0:02:04.1]}
17. Nxg6 {[%clk 0:02:01.8]} 17... fxg6 {[%clk 0:02:00.8]} 18. Qxg6+ {[%clk
0:02:02.7]} 18... Kd7 {[%clk 0:02:00.5]} 19. f4 {[%clk 0:02:00.7]} 19... Ne7
{[%clk 0:01:52.3]} 20. Qd3 {[%clk 0:01:59.1]} 20... Qc7 {[%clk 0:01:51]} 21.
O-O-O {[%clk 0:01:54.6]} 21... Nf5 {[%clk 0:01:41.9]} 22. Kb1 {[%clk 0:01:43.7]}
22... Rc8 {[%clk 0:01:41.6]} 23. Bc3 {[%clk 0:01:37]} 23... Qc4 {[%clk
0:01:39.8]} 24. Qd2 {[%clk 0:01:36.8]} 24... Kc7 {[%clk 0:01:34.9]} 25. b3
{[%clk 0:01:28.4]} 25... Qc6 {[%clk 0:01:34.4]} 26. Bb2 {[%clk 0:01:27.8]} 26...
Kb8 {[%clk 0:01:34.5]} 27. Rh3 {[%clk 0:01:24.8]} 27... Bc5 {[%clk 0:01:30]} 28.
Qe2 {[%clk 0:01:21.3]} 28... a6 {[%clk 0:01:18.8]} 29. a3 {[%clk 0:01:19.9]}
29... Qb5 {[%clk 0:01:17.2]} 30. Qd2 {[%clk 0:01:12]} 30... Bb6 {[%clk
0:01:05.8]} 31. a4 {[%clk 0:00:57.1]} 31... Qc5 {[%clk 0:01:03.1]} 32. Qe2
{[%clk 0:00:45.9]} 32... Ba5 {[%clk 0:00:58.7]} 33. Rhd3 {[%clk 0:00:42]} 33...
Bb6 {[%clk 0:00:39.6]} 34. Rh3 {[%clk 0:00:41.8]} 34... Qf2 {[%clk 0:00:39.3]}
35. Qd3 {[%clk 0:00:21.6]} 35... Qxf4 {[%clk 0:00:38.9]} 36. Rf3 {[%clk
0:00:21.8]} 36... Qxh4 {[%clk 0:00:38.2]} 37. Rxf5 {[%clk 0:00:22]} 37... exf5
{[%clk 0:00:39.1]} 38. Qxf5 {[%clk 0:00:22.1]} 38... Qe4 {[%clk 0:00:37.4]} 39.
Qd7 {[%clk 0:00:17.4]} 39... Qxc2+ {[%clk 0:00:36.5]} 40. Ka2 {[%clk 0:00:17.4]}
40... Qxd1 {[%clk 0:00:36.1]} 41. e6 {[%clk 0:00:18]} 41... Rhd8 {[%clk
0:00:29.2]} 42. Qf7 {[%clk 0:00:14.4]} 42... Bd4 {[%clk 0:00:28]} 43. e7 {[%clk
0:00:12.6]} 43... Bxb2 {[%clk 0:00:25.4]} 44. Kxb2 {[%clk 0:00:09.5]} 44... Qc1+
{[%clk 0:00:24.9]} 45. Ka2 {[%clk 0:00:09.8]} 45... Rc2# {[%clk 0:00:25.5]} 0-1